Workbook

Sheet Regression
B1: Polynomial Regression | J1: Enter the data values in the cells below:
K2: x | L2: y
B3: This DIGMath module lets you find the | J3: 1 | K3: 0 | L3: 2
B4: best polynomial fit of degree 1, 2, …, 6 | J4: 2 | K4: 1 | L4: 7
C5: to fit a set of (x, y) data | J5: 3 | K5: 2 | L5: 14
B6: using the least-squares approach. | J6: 4 | K6: 4 | L6: 26
J7: 5 | K7: 5 | L7: 17
A8: How many data points, n, between 2 and 50? | J8: 6 | K8: 7 | L8: 11
B9: n = | C9: =E9 -> 8 | E9: 8 | J9: 7 | K9: 10 | L9: 31
J10: 8 | K10: 12 | L10: 63
A11: What degree polynomial (1 to 6) do you want? | J11: 9 | K11: 121 | L11: 27
B12: deg = | C12: =E12 -> 4 | E12: 4 | J12: 10 | K12: 135 | L12: 37
J13: 11 | K13: 152 | L13: 41
J14: 12 | K14: 196 | L14: 48
J15: 13 | K15: 213 | L15: 55
A16: Based on your data, the equation | J16: 14 | K16: 227 | L16: 51
A17: =" of the "&IF(n=1,"linear",IF(n=2,"quadratic",IF(n=3,"cubic",IF(n=4,"quartic",IF(n=5,"5th degree","6th degree")))))&" regression function is" -> of the quartic regression function is | J17: 15 | K17: 244 | L17: 63
J18: 16 | K18: 258 | L18: 69
A19: =IF(n=1,Sheet2!AA4,IF(n=2,Sheet2!AA5,IF(n=3,Sheet2!AA6,IF(n=4,Sheet2!AA7,IF(n=5,Sheet2!AA8,Sheet2!AA9))))) -> y = 0.003x^4 + 0.111x^3 - 2.396x^2 + 12.438x - 0.103 | J19: 17 | K19: 274 | L19: 75
J20: 18 | K20: 288 | L20: 80
A21: The coefficient of multiple determination R2 = | H21: =Sheet2!S11 -> 0.9645449652 | J21: 19 | K21: 305 | L21: 88
B22: =IF(n=1,"so the correlation coefficient r = "&TEXT(SQRT(H21),"0.00"),"") ->  | J22: 20 | K22: 319 | L22: 93
A23: =" so the function explains "&TEXT(100*H21,"0.0")&"% of the variation in the data" -> so the function explains 96.5% of the variation in the data | J23: 21 | K23: 335 | L23: 97
J24: 22 | K24: 349 | L24: 103
A25: and the Sum of the Squares = | G25: =sss -> 76708.50773 | J25: 23
J26: 24
J27: 25
J28: 26
J29: 27
J30: 28
J31: 29
J32: 30
J33: 31
J34: 32
J35: 33
J36: 34
J37: 35
J38: 36
J39: 37
J40: 38
J41: 39
J42: 40
J43: 41
A44: Click each item below for suggestions and investigations | J44: 42
C45: Item 1 | J45: 43
C46: Item 2 | J46: 44
C47: Item 3 | J47: 45
C48: Item 4 | J48: 46
J49: 47
J50: 48
B51: Created by: Sheldon P. Gordon | J51: 49
B52: Farmingdale StateCollege | J52: 50
B53: Development of this module was supported by the
B54: NSF's Division of Undergraduate Education
B55: under grants DUE-0310123 and DUE-0442160.

Sheet Sheet2
A1: n | B1: y | C1: x | D1: x^2 | E1: x^3 | F1: x^4 | G1: x^5 | H1: x^6 | I1: predicted | J1: diff | K1: plotting points | R1: a0 = | S1: =IF(n=1,P4,IF(n=2,AC15,IF(n=3,AD21,IF(n=4,AE26,IF(n=5,AF31,AG36))))) -> -0.1032122267 | T1: const | V1: xMin = | W1: =MIN(C2:C51) -> 0 | X1: points for graph | AK1: x | AL1: y | AM1: predicted | AN1: squares
A2: 1 | B2: =IF(A2<=nn,Regression!L3,"") -> 2 | C2: =IF($A2<=nn,Regression!K3,"") -> 0 | D2: =IF($A2<=nn,$C2^2,"") -> 0 | E2: =IF($A2<=nn,$C2^3,"") -> 0 | F2: =IF($A2<=nn,$C2^4,"") -> 0 | G2: =IF($A2<=nn,$C2^5,"") -> 0 | H2: =IF($A2<=nn,$C2^6,"") -> 0 | I2: =a0+b0*C2+c0*C2^2+d0*C2^3+e0*C2^4+f0*C2^5+g0*C2^6 -> -0.1032122267 | J2: =I2-C2 -> -0.1032122267 | K2: =C2 -> 0 | L2: =B2 -> 2 | R2: b0 = | S2: =IF(n=1,N4,IF(n=2,AB15,IF(n=3,AC21,IF(n=4,AD26,IF(n=5,AE31,AF36))))) -> 12.43848235 | T2: x | V2: xMax = | W2: =MAX(C2:C51) -> 12 | X2: =xMin -> 0 | Y2: =a0+b0*X2+c0*X2^2+d0*X2^3+e0*X2^4+f0*X2^5+g0*X2^6 -> -0.1032122267 | AK2: =C2 -> 0 | AL2: =B2 -> 2 | AM2: =IF(AK2<>"",a0+b0*AK2+c0*AK2^2+d0*AK2^3+e0*AK2^4+f0*AK2^5+g0*AK2^6,"") -> -0.1032122267 | AN2: =(AL2-AM2)^2 -> 4.423501671
A3: 2 | B3: =IF(A3<=nn,Regression!L4,"") -> 7 | C3: =IF($A3<=nn,Regression!K4,"") -> 1 | D3: 1 | E3: 1 | F3: 1 | G3: 1 | H3: 1 | I3: 10.04115636 | J3: =I3-C3 -> 9.041156364 | K3: =C3 -> 1 | L3: =B3 -> 7 | N3: Linear | R3: c0 = | S3: =IF(n<2,0,IF(n=2,AA15,IF(n=3,AB21,IF(n=4,AC26,IF(n=5,AD31,IF(n=6,AE36,0)))))) -> -2.396103148 | T3: x^2 | X3: =X2+dx -> 0.06 | Y3: 0.6344945288 | AK3: =C3 -> 1 | AL3: =B3 -> 7 | AM3: 10.04115636 | AN3: =IF(AK3="","",(AL3-AM3)^2) -> 9.248632029
A4: 3 | B4: =IF(A4<=nn,Regression!L5,"") -> 14 | C4: =IF($A4<=nn,Regression!K5,"") -> 2 | D4: 4 | E4: 8 | F4: 16 | G4: 32 | H4: 64 | I4: 15.93605815 | J4: =I4-C4 -> 13.93605815 | K4: =IF($A4<=nn,C4,x0) -> 2 | L4: =IF($A4<=nn,B4,y0) -> 14 | M4: a = | N4: =SLOPE(C2:C51,B2:B51) -> 0.1879879305 | O4: b = | P4: =INTERCEPT(C2:C51,B2:B51) -> 1.106757986 | R4: d0 = | S4: =IF(n<3,0,IF(n=3,AA21,IF(n=4,AB26,IF(n=5,AC31,IF(n=6,AD36,0))))) -> 0.1106389975 | V4: dx = | W4: =(xMax-xMin)/200 -> 0.06 | X4: 0.12 | Y4: 1.35509116 | Z4: P1 = | AA4: ="y = "&TEXT(a,"0.000")&"x "&IF(b<0,"- ","+ ")&TEXT(ABS(b),"0.000") -> y = 0.188x + 1.107 | AK4: 2 | AL4: 14 | AM4: 15.93605815 | AN4: =IF(AK4="","",(AL4-AM4)^2) -> 3.748321162
A5: 4 | B5: =IF(A5<=nn,Regression!L6,"") -> 26 | C5: =IF($A5<=nn,Regression!K6,"") -> 4 | D5: 16 | E5: 64 | F5: 256 | G5: 1024 | H5: 4096 | I5: 16.17966334 | J5: 12.17966334 | K5: 4 | L5: 26 | R5: e0 = | S5: =IF(n<4,0,IF(n=4,AA31,IF(n=5,AB31,AC36))) -> -0.008649606602 | X5: 0.18 | Y5: 2.058717021 | Z5: P2 = | AA5: ="y = "&TEXT(AA15,"0.000")&"x^2 "&IF(AB15<0,"- ","+ ")&TEXT(ABS(AB15),"0.000")&"x "& IF(AC15<0,"- ","+ ")&TEXT(ABS(AC15),"0.000") -> y = 0.367x^2 - 0.551x + 8.660 | AK5: 4 | AL5: 26 | AM5: 16.17966334 | AN5: 96.43901206
A6: 5 | B6: =IF(A6<=nn,Regression!L7,"") -> 17 | C6: =IF($A6<=nn,Regression!K7,"") -> 5 | D6: 25 | E6: 125 | F6: 625 | G6: 3125 | H6: 15625 | I6: 10.61049137 | J6: 5.610491368 | K6: 5 | L6: 17 | R6: f0 = | S6: =IF(n<5,0,IF(n=5,AA31,AB36)) -> 0 | X6: 0.24 | Y6: 2.745508772 | Z6: P3 = | AA6: ="y = "&TEXT(AA21,"0.000")&"x^3 "&IF(AB21<0,"- ","+ ")&TEXT(ABS(AB21),"0.000")&"x^2 "& IF(AC21<0,"- ","+ ")&TEXT(ABS(AC21),"0.000") &"x "& IF(AD21<0,"- ","+ ")&TEXT(ABS(AD21),"0.000") -> y = 0.190x^3 - 2.982x^2 + 13.827x - 0.585 | AK6: 5 | AL6: 17 | AM6: 10.61049137 | AN6: 40.82582056
A7: 6 | B7: =IF(A7<=nn,Regression!L8,"") -> 11 | C7: =IF($A7<=nn,Regression!K8,"") -> 7 | D7: 49 | E7: 343 | F7: 2401 | G7: 16807 | H7: 117649 | I7: -13.26141936 | J7: -20.26141936 | K7: 7 | L7: 11 | M7: xMin = | N7: =MIN(B2:B51) -> 2 | O7: xMax = | P7: =MAX(B2:B51) -> 63 | R7: g0 = | S7: =IF(n=6,AA$36,0) -> 0 | T7: x^6 | X7: 0.3 | Y7: 3.415600385 | Z7: P4 = | AA7: ="y = "&TEXT(AA26,"0.000")&"x^4 "&IF(AB26<0,"- ","+ ")&TEXT(ABS(AB26),"0.000")&"x^3 "&IF(AC26<0,"- ","+ ")&TEXT(ABS(AC26),"0.000")&"x^2 "&IF(AD26<0,"- ","+ ")&TEXT(ABS(AD26),"0.000")&"x "&IF(AE26<0,"- ","+")&TEXT(ABS(AE26),"0.000") -> y = 0.003x^4 + 0.111x^3 - 2.396x^2 + 12.438x - 0.103 | AK7: 7 | AL7: 11 | AM7: -13.26141936 | AN7: 588.6164696
A8: 7 | B8: =IF(A8<=nn,Regression!L9,"") -> 31 | C8: =IF($A8<=nn,Regression!K9,"") -> 10 | D8: 100 | E8: 1000 | F8: 10000 | G8: 100000 | H8: 1000000 | I8: -91.18577209 | J8: -101.1857721 | K8: 10 | L8: 31 | X8: 0.36 | Y8: 4.069123143 | Z8: P5 = | AA8: ="y = "&TEXT(AA31,"0.000")&"x^5 "&IF(AB31<0,"- ","+ ")&TEXT(ABS(AB31),"0.000")&"x^4 "&IF(AC31<0,"- ","+ ")&TEXT(ABS(AC31),"0.000")&"x^3 "&IF(AD31<0,"- ","+ ")&TEXT(ABS(AD31),"0.000")&"x^2 "&IF(AE31<0,"- ","+")&TEXT(ABS(AE31),"0.000") &"x " &IF(AF31<0,"- ","+")&TEXT(ABS(AF31),"0.000") -> y = -0.009x^5 + 0.257x^4 - 2.454x^3 + 7.895x^2 - 1.298x +2.057 | AK8: 10 | AL8: 31 | AM8: -91.18577209 | AN8: 14929.3629
A9: 8 | B9: =IF(A9<=nn,Regression!L10,"") -> 63 | C9: =IF($A9<=nn,Regression!K10,"") -> 12 | D9: 144 | E9: 1728 | F9: 20736 | G9: 248832 | H9: 2985984 | I9: -184.0543322 | J9: -196.0543322 | K9: 12 | L9: 63 | N9: =N7 -> 2 | O9: =a*N9+b -> 1.482733847 | X9: 0.42 | Y9: 4.706205637 | Z9: P6 = | AA9: ="y = "&TEXT(AA36,"0.000")&"x^6 "&IF(AB36<0,"- ","+ ")&TEXT(ABS(AB36),"0.000")&"x^5 "&IF(AC36<0,"- ","+ ")&TEXT(ABS(AC36),"0.000")&"x^4 "&IF(AD36<0,"- ","+ ")&TEXT(ABS(AD36),"0.000")&"x^3 "&IF(AE36<0,"- ","+")&TEXT(ABS(AE36),"0.000") &"x^2 " &IF(AF36<0,"- ","+")&TEXT(ABS(AF36),"0.000") &"x " &IF(AG36<0,"- ","+")&TEXT(ABS(AG36),"0.000") -> y = 0.001x^6 - 0.038x^5 + 0.628x^4 - 4.596x^3 +13.321x^2 - 5.883x +2.274 | AK9: 12 | AL9: 63 | AM9: -184.0543322 | AN9: 61035.84307
A10: 9 | B10: =IF(A10<=nn,Regression!L11,"") ->  | C10: =IF($A10<=nn,Regression!K11,"") ->  | K10: 0 | L10: 2 | N10: =P7 -> 63 | O10: =a*N10+b -> 12.94999761 | X10: 0.48 | Y10: 5.326973766
A11: 10 | B11: =IF(A11<=nn,Regression!L12,"") ->  | C11: =IF($A11<=nn,Regression!K12,"") ->  | K11: 0 | L11: 2 | M11: correl coef = | N11: =CORREL(C2:C51,B2:B51) -> 0.8459710111 | R11: R^2 = | S11: =IF(n=1,N11^2,IF(n=2,M18,IF(n=3,M32,IF(n=4,M40,IF(n=5,M47,M54))))) -> 0.9645449652 | X11: 0.54 | Y11: 5.931550741
A12: 11 | B12: =IF(A12<=nn,Regression!L13,"") ->  | C12: =IF($A12<=nn,Regression!K13,"") ->  | K12: 0 | L12: 2 | X12: 0.6 | Y12: 6.520057083
A13: 12 | B13: =IF(A13<=nn,Regression!L14,"") ->  | C13: =IF($A13<=nn,Regression!K14,"") ->  | K13: 0 | L13: 2 | X13: 0.66 | Y13: 7.092610621 | AB13: Quadratic:
A14: 13 | B14: =IF(A14<=nn,Regression!L15,"") ->  | C14: =IF($A14<=nn,Regression!K15,"") ->  | K14: 0 | L14: 2 | X14: 0.72 | Y14: 7.649326493
A15: 14 | B15: =IF(A15<=nn,Regression!L16,"") ->  | C15: =IF($A15<=nn,Regression!K16,"") ->  | K15: 0 | L15: 2 | N15: Quadratic: | X15: 0.78 | Y15: 8.19031715 | AA15: =LINEST(B2:OFFSET(B2,nn-1,0),C2:OFFSET(C2,nn-1,1,1,1),,) -> 0.3666979585 | AB15: -0.5510670087 | AC15: 8.660392426
A16: 15 | B16: =IF(A16<=nn,Regression!L17,"") ->  | C16: =IF($A16<=nn,Regression!K17,"") ->  | K16: 0 | L16: 2 | M16: =LINEST(B2:OFFSET(B2,nn-1,0),C2:OFFSET(C2,nn-1,1,1,1),,1) -> 0.3666979585 | N16: -0.5510670087 | O16: 8.660392426 | X16: 0.84 | Y16: 8.715692349 | AA16: 0.3666979585 | AB16: -0.5510670087 | AC16: 8.660392426
A17: 16 | B17: =IF(A17<=nn,Regression!L18,"") ->  | C17: =IF($A17<=nn,Regression!K18,"") ->  | K17: 0 | L17: 2 | M17: 0.2725151315 | N17: 3.366720648 | O17: 7.831674612 | X17: 0.9 | Y17: 9.225559158 | AA17: x^2 | AB17: x | AC17: 1
A18: 17 | B18: =IF(A18<=nn,Regression!L19,"") ->  | C18: =IF($A18<=nn,Regression!K19,"") ->  | K18: 0 | L18: 2 | M18: 0.7912586655 | N18: 10.43828329 | X18: 0.96 | Y18: 9.720021956
A19: 18 | B19: =IF(A19<=nn,Regression!L20,"") ->  | C19: =IF($A19<=nn,Regression!K20,"") ->  | K19: 0 | L19: 2 | M19: 9.476545065 | N19: 5 | X19: 1.02 | Y19: 10.19918243 | AB19: Cubic:
A20: 19 | B20: =IF(A20<=nn,Regression!L21,"") ->  | C20: =IF($A20<=nn,Regression!K21,"") ->  | K20: 0 | L20: 2 | M20: 2065.08621 | N20: 544.7887905 | X20: 1.08 | Y20: 10.66313958
A21: 20 | B21: =IF(A21<=nn,Regression!L22,"") ->  | C21: =IF($A21<=nn,Regression!K22,"") ->  | K21: 0 | L21: 2 | X21: 1.14 | Y21: 11.1119897 | AA21: =LINEST(B2:OFFSET(B2,nn-1,0),C2:OFFSET(C2,nn-1,2,1,1),,) -> 0.1896092259 | AB21: -2.982481069 | AC21: 13.82703729 | AD21: -0.5850007598
A22: 21 | B22: =IF(A22<=nn,Regression!L23,"") ->  | C22: =IF($A22<=nn,Regression!K23,"") ->  | K22: 0 | L22: 2 | X22: 1.2 | Y22: 11.54582642 | AA22: x^3 | AB22: x^2 | AC22: x | AD22: 1
A23: 22 | B23: =IF(A23<=nn,Regression!L24,"") ->  | C23: =IF($A23<=nn,Regression!K24,"") ->  | K23: 0 | L23: 2 | X23: 1.26 | Y23: 11.96474066
A24: 23 | B24: =IF(A24<=nn,Regression!L25,"") ->  | C24: =IF($A24<=nn,Regression!K25,"") ->  | K24: 0 | L24: 2 | X24: 1.32 | Y24: 12.36882066 | AB24: Quartic:
A25: 24 | B25: =IF(A25<=nn,Regression!L26,"") ->  | C25: =IF($A25<=nn,Regression!K26,"") ->  | K25: 0 | L25: 2 | X25: 1.38 | Y25: 12.75815196
A26: 25 | B26: =IF(A26<=nn,Regression!L27,"") ->  | C26: =IF($A26<=nn,Regression!K27,"") ->  | K26: 0 | L26: 2 | X26: 1.44 | Y26: 13.13281742 | AA26: =LINEST(B2:OFFSET(B2,nn-1,0),C2:OFFSET(C2,nn-1,3,1,1),,) -> 0.003303893227 | AB26: 0.1106389975 | AC26: -2.396103148 | AD26: 12.43848235 | AE26: -0.1032122267
A27: 26 | B27: =IF(A27<=nn,Regression!L28,"") ->  | C27: =IF($A27<=nn,Regression!K28,"") ->  | K27: 0 | L27: 2 | X27: 1.5 | Y27: 13.49289719 | AA27: x^4 | AB27: x^3 | AC27: x^2 | AD27: x | AE27: 1
A28: 27 | B28: =IF(A28<=nn,Regression!L29,"") ->  | C28: =IF($A28<=nn,Regression!K29,"") ->  | K28: 0 | L28: 2 | X28: 1.56 | Y28: 13.83846877
A29: 28 | B29: =IF(A29<=nn,Regression!L30,"") ->  | C29: =IF($A29<=nn,Regression!K30,"") ->  | K29: 0 | L29: 2 | N29: Cubic: | X29: 1.62 | Y29: 14.16960692 | AB29: Fifth Degree:
A30: 29 | B30: =IF(A30<=nn,Regression!L31,"") ->  | C30: =IF($A30<=nn,Regression!K31,"") ->  | K30: 0 | L30: 2 | M30: =LINEST(B2:OFFSET(B2,nn-1,0),C2:OFFSET(C2,nn-1,2,1,1),,1) -> 0.1896092259 | N30: -2.982481069 | O30: 13.82703729 | P30: -0.5850007598 | X30: 1.68 | Y30: 14.48638374
A31: 30 | B31: =IF(A31<=nn,Regression!L32,"") ->  | C31: =IF($A31<=nn,Regression!K32,"") ->  | K31: 0 | L31: 2 | M31: 0.04330908084 | N31: 0.7753987657 | O31: 3.637560094 | P31: 4.206776789 | X31: 1.74 | Y31: 14.78886864 | AA31: =LINEST(B2:OFFSET(B2,nn-1,0),C2:OFFSET(C2,nn-1,4,1,1),,) -> -0.008649606602 | AB31: 0.2571629903 | AC31: -2.454038688 | AD31: 7.8946909 | AE31: -1.298483499 | AF31: 2.056733513
A32: 31 | B32: =IF(A32<=nn,Regression!L33,"") ->  | C32: =IF($A32<=nn,Regression!K33,"") ->  | K32: 0 | L32: 2 | M32: 0.9639593199 | N32: 4.84926979 | X32: 1.8 | Y32: 15.07712832 | AA32: x^5 | AB32: x^4 | AC32: x^3 | AD32: x^2 | AE32: x | AF32: 1
A33: 32 | B33: =IF(A33<=nn,Regression!L34,"") ->  | C33: =IF($A33<=nn,Regression!K34,"") ->  | K33: 0 | L33: 2 | M33: 35.66189898 | N33: 4 | X33: 1.86 | Y33: 15.35122682
A34: 33 | B34: =IF(A34<=nn,Regression!L35,"") ->  | C34: =IF($A34<=nn,Regression!K35,"") ->  | D34: =IF($A34<=nn,$C34^2,"") ->  | E34: =IF($A34<=nn,$C34^3,"") ->  | F34: =IF($A34<=nn,$C34^4,"") ->  | G34: =IF($A34<=nn,$C34^5,"") ->  | H34: =IF($A34<=nn,$C34^6,"") ->  | I34: =a0+b0*C34+c0*C34^2+d0*C34^3+e0*C34^4+f0*C34^5+g0*C34^6 ->  | K34: 0 | L34: 2 | M34: 2515.81333 | N34: 94.06166999 | X34: 1.92 | Y34: 15.61122545 | AB34: Sixth Degree: | AM34: =IF(AK34<>"",a0+b0*AK34+c0*AK34^2+d0*AK34^3+e0*AK34^4+f0*AK34^5+g0*AK34^6,"") -> 
A35: 34 | B35: =IF(A35<=nn,Regression!L36,"") ->  | C35: =IF($A35<=nn,Regression!K36,"") ->  | K35: 0 | L35: 2 | X35: =X34+dx -> 1.98 | Y35: 15.85718287
A36: 35 | B36: =IF(A36<=nn,Regression!L37,"") ->  | C36: =IF($A36<=nn,Regression!K37,"") ->  | K36: 0 | L36: 2 | X36: 2.04 | Y36: 16.08915502 | AA36: =LINEST(B2:OFFSET(B2,nn-1,0),C2:OFFSET(C2,nn-1,5,1,1),,) -> 0.0008436634653 | AB36: -0.0377250389 | AC36: 0.6280482941 | AD36: -4.596132765 | AE36: 13.32116805 | AF36: -5.882967151 | AG36: 2.274206948
A37: 36 | B37: =IF(A37<=nn,Regression!L38,"") ->  | C37: =IF($A37<=nn,Regression!K38,"") ->  | K37: 0 | L37: 2 | N37: Quartic: | X37: 2.1 | Y37: 16.30719516 | AA37: x^6 | AB37: x^5 | AC37: x^4 | AD37: x^3 | AE37: x^2 | AF37: x | AG37: 1
A38: 37 | B38: =IF(A38<=nn,Regression!L39,"") ->  | C38: =IF($A38<=nn,Regression!K39,"") ->  | K38: 0 | L38: 2 | M38: =LINEST(B2:OFFSET(B2,nn-1,0),C2:OFFSET(C2,nn-1,3,1,1),,1) -> 0.003303893227 | N38: 0.1106389975 | O38: -2.396103148 | P38: 12.43848235 | Q38: -0.1032122267 | X38: 2.16 | Y38: 16.51135387
A39: 38 | B39: =IF(A39<=nn,Regression!L40,"") ->  | C39: =IF($A39<=nn,Regression!K40,"") ->  | K39: 0 | L39: 2 | M39: 0.01484181423 | N39: 0.3582024177 | O39: 2.779805104 | P39: 7.500973304 | Q39: 5.281735644 | X39: 2.22 | Y39: 16.70167902
A40: 39 | B40: =IF(A40<=nn,Regression!L41,"") ->  | C40: =IF($A40<=nn,Regression!K41,"") ->  | K40: 0 | L40: 2 | M40: 0.9645449652 | N40: 5.553773758 | X40: 2.28 | Y40: 16.87821581
A41: 40 | B41: =IF(A41<=nn,Regression!L42,"") ->  | C41: =IF($A41<=nn,Regression!K42,"") ->  | K41: 0 | L41: 2 | M41: 20.40355421 | N41: 3 | X41: 2.34 | Y41: 17.04100673
A42: 41 | B42: =IF(A42<=nn,Regression!L43,"") ->  | C42: =IF($A42<=nn,Regression!K43,"") ->  | K42: 0 | L42: 2 | M42: 2517.341791 | N42: 92.53320888 | X42: 2.4 | Y42: 17.19009159
A43: 42 | B43: =IF(A43<=nn,Regression!L44,"") ->  | C43: =IF($A43<=nn,Regression!K44,"") ->  | K43: 0 | L43: 2 | X43: 2.46 | Y43: 17.32550751
A44: 43 | B44: =IF(A44<=nn,Regression!L45,"") ->  | C44: =IF($A44<=nn,Regression!K45,"") ->  | K44: 0 | L44: 2 | N44: Fifth Degree: | X44: 2.52 | Y44: 17.44728892
A45: 44 | B45: =IF(A45<=nn,Regression!L46,"") ->  | C45: =IF($A45<=nn,Regression!K46,"") ->  | K45: 0 | L45: 2 | M45: =LINEST(B2:OFFSET(B2,nn-1,0),C2:OFFSET(C2,nn-1,4,1,1),,1) -> -0.008649606602 | N45: 0.2571629903 | O45: -2.454038688 | P45: 7.8946909 | Q45: -1.298483499 | R45: 2.056733513 | X45: 2.58 | Y45: 17.55546755
A46: 45 | B46: =IF(A46<=nn,Regression!L47,"") ->  | C46: =IF($A46<=nn,Regression!K47,"") ->  | K46: 0 | L46: 2 | M46: 0.003140546861 | N46: 0.09254578694 | O46: 0.9525155119 | P46: 4.047149502 | Q46: 6.518161979 | R46: 3.057121009 | X46: 2.64 | Y46: 17.65007246
A47: 46 | B47: =IF(A47<=nn,Regression!L48,"") ->  | C47: =IF($A47<=nn,Regression!K48,"") ->  | K47: 0 | L47: 2 | M47: 0.9926023332 | N47: 3.107007059 | X47: 2.7 | Y47: 17.73112999
A48: 47 | B48: =IF(A48<=nn,Regression!L49,"") ->  | C48: =IF($A48<=nn,Regression!K49,"") ->  | K48: 0 | L48: 2 | M48: 53.67110228 | N48: 2 | X48: 2.76 | Y48: 17.79866382
A49: 48 | B49: =IF(A49<=nn,Regression!L50,"") ->  | C49: =IF($A49<=nn,Regression!K50,"") ->  | K49: 0 | L49: 2 | M49: 2590.568014 | N49: 19.30698573 | X49: 2.82 | Y49: 17.85269493
A50: 49 | B50: =IF(A50<=nn,Regression!L51,"") ->  | C50: =IF($A50<=nn,Regression!K51,"") ->  | K50: 0 | L50: 2 | X50: 2.88 | Y50: 17.89324159
A51: 50 | B51: =IF(A51<=nn,Regression!L52,"") ->  | C51: =IF($A51<=nn,Regression!K52,"") ->  | K51: 0 | L51: 2 | N51: Sixth Degree: | X51: 2.94 | Y51: 17.92031941
M52: =LINEST(B2:OFFSET(B2,nn-1,0),C2:OFFSET(C2,nn-1,5,1,1),,1) -> 0.0008436634653 | N52: -0.0377250389 | O52: 0.6280482941 | P52: -4.596132765 | Q52: 13.32116805 | R52: -5.882967151 | S52: 2.274206948 | X52: 3 | Y52: 17.93394128
M53: 0.002702222216 | N53: 0.09322396389 | O53: 1.194482974 | P53: 6.980498757 | Q53: 18.21926223 | R53: 17.1185129 | S53: 4.185329926 | X53: 3.06 | Y53: 17.93411743 | AN53: =SUM(AN2:AN51) -> 76708.50773
M54: 0.9932593798 | N54: 4.194302808 | X54: 3.12 | Y54: 17.92085537 | AN54: sum squares
M55: 24.55905035 | N55: 1 | X55: 3.18 | Y55: 17.89415995
M56: 2592.282824 | N56: 17.59217604 | X56: 3.24 | Y56: 17.8540333
X57: 3.3 | Y57: 17.80047488
X58: 3.36 | Y58: 17.73348145
X59: 3.42 | Y59: 17.65304708
X60: 3.48 | Y60: 17.55916316
X61: 3.54 | Y61: 17.45181837
X62: 3.6 | Y62: 17.33099873
X63: 3.66 | Y63: 17.19668753
X64: 3.72 | Y64: 17.0488654
X65: 3.78 | Y65: 16.88751027
X66: 3.84 | Y66: =a0+b0*X66+c0*X66^2+d0*X66^3+e0*X66^4+f0*X66^5+g0*X66^6 -> 16.71259738
X67: =X66+dx -> 3.9 | Y67: 16.52409928
X68: 3.96 | Y68: 16.32198583
X69: 4.02 | Y69: 16.1062242
X70: 4.08 | Y70: 15.87677886
X71: 4.14 | Y71: 15.6336116
X72: 4.2 | Y72: 15.37668152
X73: 4.26 | Y73: 15.10594503
X74: 4.32 | Y74: 14.82135584
X75: 4.38 | Y75: 14.52286499
X76: 4.44 | Y76: 14.2104208
X77: 4.5 | Y77: 13.88396893
X78: 4.56 | Y78: 13.54345232
X79: 4.62 | Y79: 13.18881125
X80: 4.68 | Y80: 12.81998328
X81: 4.74 | Y81: 12.4369033
X82: 4.8 | Y82: 12.03950351
X83: 4.86 | Y83: 11.62771341
X84: 4.92 | Y84: 11.20145981
X85: 4.98 | Y85: 10.76066683
X86: 5.04 | Y86: 10.30525592
X87: 5.1 | Y87: 9.835145796
X88: 5.16 | Y88: 9.350252527
X89: 5.22 | Y89: 8.850489469
X90: 5.28 | Y90: 8.335767293
X91: 5.34 | Y91: 7.80599398
X92: 5.4 | Y92: 7.26107482
X93: 5.46 | Y93: 6.700912413
X94: 5.52 | Y94: 6.125406667
X95: 5.58 | Y95: 5.534454803
X96: 5.64 | Y96: 4.927951348
X97: 5.7 | Y97: 4.30578814
X98: 5.76 | Y98: 3.667854328
X99: =X98+dx -> 5.82 | Y99: 3.014036369
X100: 5.88 | Y100: 2.34421803
X101: 5.94 | Y101: 1.658280387
X102: 6 | Y102: 0.9561018279
X103: 6.06 | Y103: 0.2375580475
X104: 6.12 | Y104: -0.4974779482
X105: 6.18 | Y105: -1.249135844
X106: 6.24 | Y106: -2.017548015
X107: 6.3 | Y107: -2.802849527
X108: 6.36 | Y108: -3.605178136
X109: 6.42 | Y109: -4.424674288
X110: 6.48 | Y110: -5.26148112
X111: 6.54 | Y111: -6.115744458
X112: 6.6 | Y112: -6.98761282
X113: 6.66 | Y113: -7.877237415
X114: 6.72 | Y114: -8.784772139
X115: 6.78 | Y115: -9.710373582
X116: 6.84 | Y116: -10.65420102
X117: 6.9 | Y117: -11.61641643
X118: 6.96 | Y118: -12.59718446
X119: 7.02 | Y119: -13.59667247
X120: 7.08 | Y120: -14.6150505
X121: 7.14 | Y121: -15.65249127
X122: 7.2 | Y122: -16.70917022
X123: 7.26 | Y123: -17.78526544
X124: 7.32 | Y124: -18.88095774
X125: 7.38 | Y125: -19.99643062
X126: 7.44 | Y126: -21.13187026
X127: 7.5 | Y127: -22.28746553
X128: 7.56 | Y128: -23.46340798
X129: 7.62 | Y129: -24.65989189
X130: 7.68 | Y130: =a0+b0*X130+c0*X130^2+d0*X130^3+e0*X130^4+f0*X130^5+g0*X130^6 -> -25.87711419
X131: =X130+dx -> 7.74 | Y131: -27.11527451
X132: 7.8 | Y132: -28.37457519
X133: 7.86 | Y133: -29.65522123
X134: 7.92 | Y134: -30.95742034
X135: 7.98 | Y135: -32.28138292
X136: 8.04 | Y136: -33.62732205
X137: 8.1 | Y137: -34.99545351
X138: 8.16 | Y138: -36.38599577
X139: 8.22 | Y139: -37.79916999
X140: 8.28 | Y140: -39.23520001
X141: 8.34 | Y141: -40.69431237
X142: 8.4 | Y142: -42.1767363
X143: 8.46 | Y143: -43.68270371
X144: 8.52 | Y144: -45.21244923
X145: 8.58 | Y145: -46.76621014
X146: 8.64 | Y146: -48.34422645
X147: 8.7 | Y147: -49.94674082
X148: 8.76 | Y148: -51.57399863
X149: 8.82 | Y149: -53.22624794
X150: 8.88 | Y150: -54.9037395
X151: 8.94 | Y151: -56.60672676
X152: 9 | Y152: -58.33546584
X153: 9.06 | Y153: -60.09021558
X154: 9.12 | Y154: -61.87123747
X155: 9.18 | Y155: -63.67879573
X156: 9.24 | Y156: -65.51315725
X157: 9.3 | Y157: -67.37459162
X158: 9.36 | Y158: -69.2633711
X159: 9.42 | Y159: -71.17977066
X160: 9.48 | Y160: -73.12406797
X161: 9.54 | Y161: -75.09654336
X162: 9.6 | Y162: -77.09747987
X163: =X162+dx -> 9.66 | Y163: -79.12716322
X164: 9.72 | Y164: -81.18588184
X165: 9.78 | Y165: -83.27392683
X166: 9.84 | Y166: -85.39159199
X167: 9.9 | Y167: -87.53917381
X168: 9.96 | Y168: -89.71697146
X169: 10.02 | Y169: -91.92528681
X170: 10.08 | Y170: -94.16442443
X171: 10.14 | Y171: -96.43469156
X172: 10.2 | Y172: -98.73639814
X173: 10.26 | Y173: -101.0698568
X174: 10.32 | Y174: -103.4353829
X175: 10.38 | Y175: -105.8332943
X176: 10.44 | Y176: -108.2639119
X177: 10.5 | Y177: -110.727559
X178: 10.56 | Y178: -113.2245617
X179: 10.62 | Y179: -115.7552488
X180: 10.68 | Y180: -118.3199516
X181: 10.74 | Y181: -120.9190045
X182: 10.8 | Y182: -123.5527442
X183: 10.86 | Y183: -126.2215102
X184: 10.92 | Y184: -128.9256448
X185: 10.98 | Y185: -131.6654929
X186: 11.04 | Y186: -134.4414021
X187: 11.1 | Y187: -137.2537227
X188: 11.16 | Y188: -140.1028077
X189: 11.22 | Y189: -142.9890127
X190: 11.28 | Y190: -145.9126961
X191: 11.34 | Y191: -148.8742191
X192: 11.4 | Y192: -151.8739452
X193: 11.46 | Y193: -154.912241
X194: 11.52 | Y194: =a0+b0*X194+c0*X194^2+d0*X194^3+e0*X194^4+f0*X194^5+g0*X194^6 -> -157.9894756
X195: =X194+dx -> 11.58 | Y195: -161.1060209
X196: 11.64 | Y196: -164.2622512
X197: 11.7 | Y197: -167.4585439
X198: 11.76 | Y198: -170.6952787
X199: 11.82 | Y199: -173.9728384
X200: 11.88 | Y200: -177.2916081
... 2 more rows
